Workbook

Sheet اساس 2016 مرتب
G1: 0
B3: تاريخ الفتح الفني | C3: تاريخ المستخلص | M3: ][
C4: من | D4: الى | E4: فترة المستحلص
B5: 2018-08-01 | C5: 2019-10-01 | D5: 2020-01-01 | E5: =DATEDIF(C5,D5,"m")+1 -> 4
A10: =EDATE(C$5,ROW()/10-1) -> 2019-10-01 | B10: رقم البند | C10: البند | D10: سعر فتح | E10: سعر مستخلص | F10: نسبة التأثير | G10: كمية | H10: سعر | I10: عدد الأيام | J10: الأيام الكلية | K10: الإجمالي
B11: 1 | C11: سولار | D11: =VLOOKUP($B$5,'الارقام القياسية 2016'!$A$2:$I$73,2,0) -> 266.2 | E11: =VLOOKUP(A10,'الارقام القياسية 2016'!$A$2:$I$73,2,0) -> 315.5 | F11: =VLOOKUP($B11,'نسب التأثير - المعاملات'!$A$4:$I$29,2,0) -> 0.2 | K11: =(D11*E11)/D11*F11*G11*H11*I11/J11 -> 
B12: 1 | C12: اسمنت بورتلاند | D12: =VLOOKUP($B$5,'الارقام القياسية 2016'!$A$2:$I$73,3,0) -> 132.1 | E12: =VLOOKUP(A10,'الارقام القياسية 2016'!$A$2:$I$73,3,0) -> 137.6 | F12: =VLOOKUP($B12,'نسب التأثير - المعاملات'!$A$4:$I$29,3,0) -> 0 | K12: =(D12*E12)/D12*F12*G12*H12*I12/J12 -> 
B13: 1 | C13: حديد | D13: =VLOOKUP($B$5,'الارقام القياسية 2016'!$A$2:$I$73,4,0) -> 284.7 | E13: =VLOOKUP(A10,'الارقام القياسية 2016'!$A$2:$I$73,4,0) -> 247.7 | F13: =VLOOKUP($B13,'نسب التأثير - المعاملات'!$A$4:$I$29,4,0) -> 0
B14: 1 | C14: اسفلت | D14: =VLOOKUP($B$5,'الارقام القياسية 2016'!$A$2:$I$73,5,0) -> 311 | E14: =VLOOKUP(A10,'الارقام القياسية 2016'!$A$2:$I$73,5,0) -> 311 | F14: =VLOOKUP($B14,'نسب التأثير - المعاملات'!$A$4:$I$29,5,0) -> 0
B15: 1 | C15: قطاعات معدنية | D15: =VLOOKUP($B$5,'الارقام القياسية 2016'!$A$2:$I$73,6,0) -> 261.3 | E15: =VLOOKUP(A10,'الارقام القياسية 2016'!$A$2:$I$73,6,0) -> 230.6 | F15: =VLOOKUP($B15,'نسب التأثير - المعاملات'!$A$4:$I$29,6,0) -> 0
B16: 1 | C16: غلاف معدني | D16: =VLOOKUP($B$5,'الارقام القياسية 2016'!$A$2:$I$73,7,0) -> 284 | E16: =VLOOKUP(A10,'الارقام القياسية 2016'!$A$2:$I$73,7,0) -> 234.4 | F16: =VLOOKUP($B16,'نسب التأثير - المعاملات'!$A$4:$I$29,7,0) -> 0
B17: 1 | C17: زوايا وكمرات | D17: =VLOOKUP($B$5,'الارقام القياسية 2016'!$A$2:$I$73,8,0) -> 271.4 | E17: =VLOOKUP(A10,'الارقام القياسية 2016'!$A$2:$I$73,8,0) -> 276.9 | F17: =VLOOKUP($B17,'نسب التأثير - المعاملات'!$A$4:$I$29,8,0) -> 0
B18: 1 | C18: مواسير صلب | D18: =VLOOKUP($B$5,'الارقام القياسية 2016'!$A$2:$I$73,9,0) -> 0 | E18: =VLOOKUP(A10,'الارقام القياسية 2016'!$A$2:$I$73,9,0) -> 0 | F18: =VLOOKUP($B18,'نسب التأثير - المعاملات'!$A$4:$I$29,9,0) -> 0
A20: =EDATE(C$5,ROW()/10-1) -> 2019-11-01 | B20: رقم البند | C20: البند | D20: سعر فتح | E20: سعر مستخلص | F20: نسبة التأثير | G20: كمية | H20: سعر | I20: عدد الأيام | J20: الأيام الكلية | K20: الإجمالي
B21: 1 | C21: سولار | D21: =VLOOKUP($B$5,'الارقام القياسية 2016'!$A$2:$I$73,2,0) -> 266.2 | E21: =VLOOKUP(A20,'الارقام القياسية 2016'!$A$2:$I$73,2,0) -> 315.5 | F21: =VLOOKUP($B21,'نسب التأثير - المعاملات'!$A$4:$I$29,2,0) -> 0.2 | K21: =(D21*E21)/D21*F21*G21*H21*I21/J21 -> 
B22: 1 | C22: اسمنت بورتلاند | D22: =VLOOKUP($B$5,'الارقام القياسية 2016'!$A$2:$I$73,3,0) -> 132.1 | E22: =VLOOKUP(A20,'الارقام القياسية 2016'!$A$2:$I$73,3,0) -> 137.6 | F22: =VLOOKUP($B22,'نسب التأثير - المعاملات'!$A$4:$I$29,3,0) -> 0 | K22: =(D22*E22)/D22*F22*G22*H22*I22/J22 -> 
B23: 1 | C23: حديد | D23: =VLOOKUP($B$5,'الارقام القياسية 2016'!$A$2:$I$73,4,0) -> 284.7 | E23: =VLOOKUP(A20,'الارقام القياسية 2016'!$A$2:$I$73,4,0) -> 235.7 | F23: =VLOOKUP($B23,'نسب التأثير - المعاملات'!$A$4:$I$29,4,0) -> 0
B24: 1 | C24: اسفلت | D24: =VLOOKUP($B$5,'الارقام القياسية 2016'!$A$2:$I$73,5,0) -> 311 | E24: =VLOOKUP(A20,'الارقام القياسية 2016'!$A$2:$I$73,5,0) -> 311 | F24: =VLOOKUP($B24,'نسب التأثير - المعاملات'!$A$4:$I$29,5,0) -> 0
B25: 1 | C25: قطاعات معدنية | D25: =VLOOKUP($B$5,'الارقام القياسية 2016'!$A$2:$I$73,6,0) -> 261.3 | E25: =VLOOKUP(A20,'الارقام القياسية 2016'!$A$2:$I$73,6,0) -> 228.4 | F25: =VLOOKUP($B25,'نسب التأثير - المعاملات'!$A$4:$I$29,6,0) -> 0
B26: 1 | C26: غلاف معدني | D26: =VLOOKUP($B$5,'الارقام القياسية 2016'!$A$2:$I$73,7,0) -> 284 | E26: =VLOOKUP(A20,'الارقام القياسية 2016'!$A$2:$I$73,7,0) -> 226.1 | F26: =VLOOKUP($B26,'نسب التأثير - المعاملات'!$A$4:$I$29,7,0) -> 0
B27: 1 | C27: زوايا وكمرات | D27: =VLOOKUP($B$5,'الارقام القياسية 2016'!$A$2:$I$73,8,0) -> 271.4 | E27: =VLOOKUP(A20,'الارقام القياسية 2016'!$A$2:$I$73,8,0) -> 263.2 | F27: =VLOOKUP($B27,'نسب التأثير - المعاملات'!$A$4:$I$29,8,0) -> 0
B28: 1 | C28: مواسير صلب | D28: =VLOOKUP($B$5,'الارقام القياسية 2016'!$A$2:$I$73,9,0) -> 0 | E28: =VLOOKUP(A20,'الارقام القياسية 2016'!$A$2:$I$73,9,0) -> 0 | F28: =VLOOKUP($B28,'نسب التأثير - المعاملات'!$A$4:$I$29,9,0) -> 0
A30: =EDATE(C$5,ROW()/10-1) -> 2019-12-01 | B30: رقم البند | C30: البند | D30: سعر فتح | E30: سعر مستخلص | F30: نسبة التأثير | G30: كمية | H30: سعر | I30: عدد الأيام | J30: الأيام الكلية | K30: الإجمالي
B31: 1 | C31: سولار | D31: =VLOOKUP($B$5,'الارقام القياسية 2016'!$A$2:$I$73,2,0) -> 266.2 | E31: =VLOOKUP(A30,'الارقام القياسية 2016'!$A$2:$I$73,2,0) -> 315.5 | F31: =VLOOKUP($B31,'نسب التأثير - المعاملات'!$A$4:$I$29,2,0) -> 0.2 | K31: =(D31*E31)/D31*F31*G31*H31*I31/J31 -> 
B32: 1 | C32: اسمنت بورتلاند | D32: =VLOOKUP($B$5,'الارقام القياسية 2016'!$A$2:$I$73,3,0) -> 132.1 | E32: =VLOOKUP(A30,'الارقام القياسية 2016'!$A$2:$I$73,3,0) -> 137.6 | F32: =VLOOKUP($B32,'نسب التأثير - المعاملات'!$A$4:$I$29,3,0) -> 0 | K32: =(D32*E32)/D32*F32*G32*H32*I32/J32 -> 
B33: 1 | C33: حديد | D33: =VLOOKUP($B$5,'الارقام القياسية 2016'!$A$2:$I$73,4,0) -> 284.7 | E33: =VLOOKUP(A30,'الارقام القياسية 2016'!$A$2:$I$73,4,0) -> 240.2 | F33: =VLOOKUP($B33,'نسب التأثير - المعاملات'!$A$4:$I$29,4,0) -> 0
B34: 1 | C34: اسفلت | D34: =VLOOKUP($B$5,'الارقام القياسية 2016'!$A$2:$I$73,5,0) -> 311 | E34: =VLOOKUP(A30,'الارقام القياسية 2016'!$A$2:$I$73,5,0) -> 311 | F34: =VLOOKUP($B34,'نسب التأثير - المعاملات'!$A$4:$I$29,5,0) -> 0
B35: 1 | C35: قطاعات معدنية | D35: =VLOOKUP($B$5,'الارقام القياسية 2016'!$A$2:$I$73,6,0) -> 261.3 | E35: =VLOOKUP(A30,'الارقام القياسية 2016'!$A$2:$I$73,6,0) -> 226.7 | F35: =VLOOKUP($B35,'نسب التأثير - المعاملات'!$A$4:$I$29,6,0) -> 0
B36: 1 | C36: غلاف معدني | D36: =VLOOKUP($B$5,'الارقام القياسية 2016'!$A$2:$I$73,7,0) -> 284 | E36: =VLOOKUP(A30,'الارقام القياسية 2016'!$A$2:$I$73,7,0) -> 224.6 | F36: =VLOOKUP($B36,'نسب التأثير - المعاملات'!$A$4:$I$29,7,0) -> 0
B37: 1 | C37: زوايا وكمرات | D37: =VLOOKUP($B$5,'الارقام القياسية 2016'!$A$2:$I$73,8,0) -> 271.4 | E37: =VLOOKUP(A30,'الارقام القياسية 2016'!$A$2:$I$73,8,0) -> 276.9 | F37: =VLOOKUP($B37,'نسب التأثير - المعاملات'!$A$4:$I$29,8,0) -> 0
B38: 1 | C38: مواسير صلب | D38: =VLOOKUP($B$5,'الارقام القياسية 2016'!$A$2:$I$73,9,0) -> 0 | E38: =VLOOKUP(A30,'الارقام القياسية 2016'!$A$2:$I$73,9,0) -> 0 | F38: =VLOOKUP($B38,'نسب التأثير - المعاملات'!$A$4:$I$29,9,0) -> 0
A40: =EDATE(C$5,ROW()/10-1) -> 2020-01-01 | B40: رقم البند | C40: البند | D40: سعر فتح | E40: سعر مستخلص | F40: نسبة التأثير | G40: كمية | H40: سعر | I40: عدد الأيام | J40: الأيام الكلية | K40: الإجمالي
B41: 1 | C41: سولار | D41: =VLOOKUP($B$5,'الارقام القياسية 2016'!$A$2:$I$73,2,0) -> 266.2 | E41: =VLOOKUP(A40,'الارقام القياسية 2016'!$A$2:$I$73,2,0) -> 315.5 | F41: =VLOOKUP($B41,'نسب التأثير - المعاملات'!$A$4:$I$29,2,0) -> 0.2 | K41: =(D41*E41)/D41*F41*G41*H41*I41/J41 -> 
B42: 1 | C42: اسمنت بورتلاند | D42: =VLOOKUP($B$5,'الارقام القياسية 2016'!$A$2:$I$73,3,0) -> 132.1 | E42: =VLOOKUP(A40,'الارقام القياسية 2016'!$A$2:$I$73,3,0) -> 137.9 | F42: =VLOOKUP($B42,'نسب التأثير - المعاملات'!$A$4:$I$29,3,0) -> 0 | K42: =(D42*E42)/D42*F42*G42*H42*I42/J42 -> 
B43: 1 | C43: حديد | D43: =VLOOKUP($B$5,'الارقام القياسية 2016'!$A$2:$I$73,4,0) -> 284.7 | E43: =VLOOKUP(A40,'الارقام القياسية 2016'!$A$2:$I$73,4,0) -> 240.2 | F43: =VLOOKUP($B43,'نسب التأثير - المعاملات'!$A$4:$I$29,4,0) -> 0
B44: 1 | C44: اسفلت | D44: =VLOOKUP($B$5,'الارقام القياسية 2016'!$A$2:$I$73,5,0) -> 311 | E44: =VLOOKUP(A40,'الارقام القياسية 2016'!$A$2:$I$73,5,0) -> 289.8 | F44: =VLOOKUP($B44,'نسب التأثير - المعاملات'!$A$4:$I$29,5,0) -> 0
B45: 1 | C45: قطاعات معدنية | D45: =VLOOKUP($B$5,'الارقام القياسية 2016'!$A$2:$I$73,6,0) -> 261.3 | E45: =VLOOKUP(A40,'الارقام القياسية 2016'!$A$2:$I$73,6,0) -> 225.8 | F45: =VLOOKUP($B45,'نسب التأثير - المعاملات'!$A$4:$I$29,6,0) -> 0
B46: 1 | C46: غلاف معدني | D46: =VLOOKUP($B$5,'الارقام القياسية 2016'!$A$2:$I$73,7,0) -> 284 | E46: =VLOOKUP(A40,'الارقام القياسية 2016'!$A$2:$I$73,7,0) -> 263.2 | F46: =VLOOKUP($B46,'نسب التأثير - المعاملات'!$A$4:$I$29,7,0) -> 0
B47: 1 | C47: زوايا وكمرات | D47: =VLOOKUP($B$5,'الارقام القياسية 2016'!$A$2:$I$73,8,0) -> 271.4 | E47: =VLOOKUP(A40,'الارقام القياسية 2016'!$A$2:$I$73,8,0) -> 260.8 | F47: =VLOOKUP($B47,'نسب التأثير - المعاملات'!$A$4:$I$29,8,0) -> 0
B48: 1 | C48: مواسير صلب | D48: =VLOOKUP($B$5,'الارقام القياسية 2016'!$A$2:$I$73,9,0) -> 0 | E48: =VLOOKUP(A40,'الارقام القياسية 2016'!$A$2:$I$73,9,0) -> 0 | F48: =VLOOKUP($B48,'نسب التأثير - المعاملات'!$A$4:$I$29,9,0) -> 0

Sheet الارقام القياسية 2016
A1: البند / الشهر | B1: سولار | C1: اسمنت بورتلاند | D1: حديد | E1: اسفلت | F1: قطاعات معدنية | G1: غلاف معدني | H1: زوايا وكمرات | I1: مواسير صلب ملحومة
A2: 2016-01-01
A3: 2016-02-01
A4: 2016-03-01
A5: 2016-04-01
A6: 2016-05-01
A7: 2016-06-01
A8: 2016-07-01
A9: 2016-08-01
A10: 2016-09-01
A11: 2016-10-01
A12: 2016-11-01
A13: 2016-12-01
A14: 2017-01-01
A15: 2017-02-01
A16: 2017-03-01
A17: 2017-04-01
A18: 2017-05-01
A19: 2017-06-01
A20: 2017-07-01
A21: 2017-08-01 | B21: 187.1 | C21: 123.2 | D21: 259.1 | E21: 231.5 | F21: 238.9 | G21: 260.5 | H21: 238.2
A22: 2017-09-01 | B22: 187.1 | C22: 125 | D22: 267.6 | E22: 231.5 | F22: 239 | G22: 263 | H22: 240.7
A23: 2017-10-01 | B23: 187.1 | C23: 117.5 | D23: 272.1 | E23: 284.9 | F23: 245.9 | G23: 267.3 | H23: 254.1
A24: 2017-11-01 | B24: 187.1 | C24: 138.5 | D24: 272.1 | E24: 284.9 | F24: 245.9 | G24: 267.3 | H24: 254.1
A25: 2017-12-01 | B25: 187.1 | C25: 144.1 | D25: 272.1 | E25: 284.9 | F25: 245.9 | G25: 267.3 | H25: 252.9
A26: 2018-01-01 | B26: 187.1 | C26: 144.1 | D26: 272.1 | E26: 284.9 | F26: 248.9 | G26: 267.3 | H26: 252.9
A27: 2018-02-01 | B27: 187.1 | C27: 144.1 | D27: 272.1 | E27: 284.9 | F27: 248.9 | G27: 267.3 | H27: 252.9
A28: 2018-03-01 | B28: 187.1 | C28: 175.4 | D28: 290.7 | E28: 284.9 | F28: 255.6 | G28: 275.1 | H28: 260.7
A29: 2018-04-01 | B29: 187.1 | C29: 144.6 | D29: 284.7 | E29: 311 | F29: 261.3 | G29: 284 | H29: 271.4
A30: 2018-05-01 | B30: 187.1 | C30: 137.9 | D30: 284.7 | E30: 311 | F30: 261.3 | G30: 284 | H30: 271.4
A31: 2018-06-01 | B31: 266.2 | C31: 142.5 | D31: 284.7 | E31: 311 | F31: 261.3 | G31: 284 | H31: 271.4
A32: 2018-07-01 | B32: 266.2 | C32: 143 | D32: 284.7 | E32: 311 | F32: 261.3 | G32: 284 | H32: 271.4
A33: 2018-08-01 | B33: 266.2 | C33: 132.1 | D33: 284.7 | E33: 311 | F33: 261.3 | G33: 284 | H33: 271.4
A34: 2018-09-01 | B34: 266.2 | C34: 132.1 | D34: 284.7 | E34: 311 | F34: 261.3 | G34: 284 | H34: 271.4
A35: 2018-10-01 | B35: 266.2 | C35: 134.7 | D35: 277.2 | E35: 311 | F35: 261.3 | G35: 284 | H35: 271.4
A36: 2018-11-01 | B36: 266.2 | C36: 134.7 | D36: 277.2 | E36: 311 | F36: 261.3 | G36: 284 | H36: 271.4
A37: 2018-12-01 | B37: 266.2 | C37: 131.9 | D37: 263.7 | E37: 311 | F37: 256.6 | G37: 284 | H37: 271.4
A38: 2019-01-01 | B38: 266.2 | C38: 131.9 | D38: 263.7 | E38: 311 | F38: 250.6 | G38: 278.2 | H38: 271.6
A39: 2019-02-01 | B39: 266.2 | C39: 131.9 | D39: 263.7 | E39: 311 | F39: 249.2 | G39: 274.5 | H39: 271.6
A40: 2019-03-01 | B40: 266.2 | C40: 131.9 | D40: 263.7 | E40: 311 | F40: 249.2 | G40: 274.5 | H40: 271.6
A41: 2019-04-01 | B41: 266.2 | C41: 131.9 | D41: 263.7 | E41: 311 | F41: 249.2 | G41: 274.5 | H41: 271.6
A42: 2019-05-01 | B42: 266.2 | C42: 131.9 | D42: 267.7 | E42: 311 | F42: 249.2 | G42: 272.3 | H42: 271.6
A43: 2019-06-01 | B43: 266.2 | C43: 131.9 | D43: 270.2 | E43: 311 | F43: 249.2 | G43: 272.3 | H43: 271.6
A44: 2019-07-01 | B44: 319.6 | C44: 137.8 | D44: 270.2 | E44: 311 | F44: 246.6 | G44: 263 | H44: 271.6
A45: 2019-08-01 | B45: 319.6 | C45: 137.6 | D45: 270.2 | E45: 311 | F45: 243.1 | G45: 246.3 | H45: 271.6
A46: 2019-09-01 | B46: 319.6 | C46: 137.6 | D46: 270.2 | E46: 311 | F46: 233.5 | G46: 238.5 | H46: 276.9
A47: 2019-10-01 | B47: 315.5 | C47: 137.6 | D47: 247.7 | E47: 311 | F47: 230.6 | G47: 234.4 | H47: 276.9
A48: 2019-11-01 | B48: 315.5 | C48: 137.6 | D48: 235.7 | E48: 311 | F48: 228.4 | G48: 226.1 | H48: 263.2
A49: 2019-12-01 | B49: 315.5 | C49: 137.6 | D49: 240.2 | E49: 311 | F49: 226.7 | G49: 224.6 | H49: 276.9
A50: 2020-01-01 | B50: 315.5 | C50: 137.9 | D50: 240.2 | E50: 289.8 | F50: 225.8 | G50: 263.2 | H50: 260.8
A51: 2020-02-01 | B51: 315.5 | C51: 137.9 | D51: 229.5 | E51: 289.8 | F51: 225.8 | G51: 220.9 | H51: 260.8 | I51: 260.8
A52: 2020-03-01 | B52: 315.5 | C52: 137.9 | D52: 232.1 | E52: 289.8 | F52: 225.8 | G52: 220.9 | H52: 260.8 | I52: 260.8
A53: 2020-04-01 | B53: 311.3 | C53: 137.9 | D53: 232.1 | E53: 274 | F53: 225.8 | G53: 220.9 | H53: 260.8 | I53: 260.8
A54: 2020-05-01 | B54: 311.3 | C54: 137.9 | D54: 232.1 | E54: 274 | F54: 225.8 | G54: 220.9 | H54: 260.8 | I54: 260.8
A55: 2020-06-01 | B55: 311.3 | C55: 137.9 | D55: 232.1 | E55: 274 | F55: 214.5 | G55: 214.5 | H55: 260.8 | I55: 260.8
A56: 2020-07-01 | B56: 311.3 | C56: 148.2 | D56: 232.1 | E56: 274 | F56: 207.4 | G56: 211.3 | H56: 260.8 | I56: 260.8
A57: 2020-08-01 | B57: 311.3 | C57: 148.2 | D57: 221.6 | E57: 274 | F57: 205.9 | G57: 208 | H57: 260.8 | I57: 260.8
A58: 2020-09-01 | B58: 311.3 | C58: 148.2 | D58: 221.6 | E58: 274 | F58: 205.6 | G58: 208 | H58: 260.8 | I58: 260.8
A59: 2020-10-01 | B59: 311.3 | C59: 148.2 | D59: 229.6 | E59: 274 | F59: 204 | G59: 208 | H59: 260.8 | I59: 260.8
A60: 2020-11-01 | B60: 311.3 | C60: 148.2 | D60: 229.6 | E60: 274 | F60: 204 | G60: 208 | H60: 260.8 | I60: 260.8
A61: 2020-12-01 | B61: 311.3 | C61: 148.2 | D61: 287.6 | E61: 274 | F61: 224.5 | G61: 201.3 | H61: 260.8 | I61: 260.8
A62: 2021-01-01 | B62: 311.3 | C62: 148.2 | D62: 310.3 | E62: 274 | F62: 234.2 | G62: 298.6 | H62: 301.5 | I62: 260.8
A63: 2021-02-01 | B63: 311.3 | C63: 148.4 | D63: 310.3 | E63: 303.1 | F63: 245.5 | G63: 298.6 | H63: 301.5 | I63: 260.8
A64: 2021-03-01 | B64: 311.3 | C64: 150.6 | D64: 310.3 | E64: 303.1 | F64: 243.9 | G64: 290 | H64: 291 | I64: 260.8
A65: 2021-04-01 | B65: 315.4 | C65: 152.7 | D65: 310.3 | E65: 358.4 | F65: 251.7 | G65: 338.5 | H65: 318 | I65: 274.9
A66: 2021-05-01 | B66: 315.4 | C66: 152.7 | D66: 313.7 | E66: 358.4 | F66: 251.7 | G66: 420.3 | H66: 419.5 | I66: 274.9
A67: 2021-06-01
A68: 2021-07-01
A69: 2021-08-01
A70: 2021-09-01
A71: 2021-10-01
A72: 2021-11-01
A73: 2021-12-01

Sheet نسب التأثير - المعاملات
A3: رقم البند | B3: سولار | C3: اسمنت بورتلاند | D3: حديد | E3: اسفلت | F3: قطاعات معدنية | G3: غلاف معدني | H3: زوايا وكمرات | I3: مواسير صلب
A4: 1 | B4: 0.2 | K4: رقم البند | L4: نسب التأثير
A5: 2 | B5: 0.2 | K5: 14 | L5: =VLOOKUP($K$5,'نسب التأثير - المعاملات'!$A$4:$I$28,2,0) -> 0.1 | M5: سولار
A6: 3 | B6: 0.2 | L6: =VLOOKUP($K$5,'نسب التأثير - المعاملات'!$A$4:$I$28,3,0) -> 0.25 | M6: اسمنت بورتلاند
A7: 4 | B7: 0.2 | L7: =VLOOKUP($K$5,'نسب التأثير - المعاملات'!$A$4:$I$28,4,0) -> 0 | M7: حديد
A8: 5 | B8: 0.2 | L8: =VLOOKUP($K$5,'نسب التأثير - المعاملات'!$A$4:$I$28,5,0) -> 0 | M8: اسفلت
A9: 6 | B9: 0.2 | L9: =VLOOKUP($K$5,'نسب التأثير - المعاملات'!$A$4:$I$28,6,0) -> 0 | M9: قطاعات معدنية
A10: 7 | B10: 0.1 | E10: 0.75 | L10: =VLOOKUP($K$5,'نسب التأثير - المعاملات'!$A$4:$I$28,7,0) -> 0 | M10: غلاف معدني
A11: 8 | B11: 0.15 | E11: 0.5 | L11: =VLOOKUP($K$5,'نسب التأثير - المعاملات'!$A$4:$I$28,8,0) -> 0 | M11: زوايا وكمرات
A12: 9 | B12: 0.15 | E12: 0.65 | L12: =VLOOKUP($K$5,'نسب التأثير - المعاملات'!$A$4:$I$28,9,0) -> 0 | M12: مواسير صلب
A13: 10 | B13: 0.15 | E13: 0.5
A14: 11 | B14: 0.15 | E14: 0.5
A15: 12 | B15: 0.15 | C15: 0.35
A16: 13 | B16: 0.15
A17: 14 | B17: 0.1 | C17: 0.25
A18: 15 | B18: 0.1 | C18: 0.25
A19: 16 | B19: 0.1 | C19: 0.2 | D19: 0.35
A20: 17 | B20: 0.15 | C20: 0.3 | D20: 0.1
A21: 18 | B21: 0.15 | C21: 0.3 | D21: 0.1
A22: 19 | B22: 0.1 | C22: 0.35
A23: 20
A24: 21
A25: 22
A26: 23
A27: 24
A28: 25
A29: 26
